fUSD/lending_fUSD_20240920
["ID","MTS","AMOUNT","RATE_DAILY","PERIOD"]
[338672343,1726862095921,500.0,0.00022999,120]
[338672344,1726862095995,500.0,0.00022999,120]
[338672345,1726862096215,500.0,0.00022999,120]
[338672346,1726862096265,500.0,0.00022999,120]
[338672347,1726862096317,500.0,0.00022999,120]
[338672348,1726862096423,500.0,0.00022999,120]
[338672349,1726862096543,408.66,0.00022999,120]
[338672350,1726862096652,500.0,0.00022999,120]
[338672351,1726862096694,151.88,0.00022999,120]
[338672352,1726862096740,500.0,0.00022999,120]
[338672353,1726862096976,500.0,0.00022999,120]
[338672354,1726862097052,500.0,0.00022999,120]
[338672355,1726862097313,500.0,0.00022999,120]
[338672356,1726862097379,500.0,0.00022999,120]
[338672357,1726862097647,500.0,0.00022999,120]
[338672358,1726862097694,390.96,0.00022999,120]
[338672359,1726862098106,500.0,0.00022999,120]
[338672360,1726862098427,364.56675974,0.00022999,120]
[338672361,1726862099065,532.27,0.00022999,120]
[338672362,1726862099681,500.0,0.00022999,120]
[338672363,1726862100010,500.0,0.00022999,120]
[338672364,1726862100355,500.0,0.00022999,120]
[338672365,1726862100679,500.0,0.00022999,120]
[338672366,1726862100726,500.0,0.00022999,120]
[338672367,1726862101035,500.0,0.00022999,120]
[338672368,1726862101078,181.48,0.00022999,120]
[338672369,1726862101497,500.0,0.00022999,120]
[338672370,1726862101885,500.0,0.00022999,120]
[338672371,1726862102212,500.0,0.00022999,120]
[338672372,1726862102541,500.0,0.00022999,120]
[338672373,1726862103099,500.0,0.00022999,120]
[338672374,1726862103661,268.16,0.00022999,120]
[338672375,1726862103818,500.0,0.00022999,120]
[338672376,1726862104132,500.0,0.00022999,120]
[338672377,1726862104194,500.0,0.00022999,120]
[338672378,1726862104545,500.0,0.00022999,120]
[338672379,1726862104605,500.0,0.00022999,120]
[338672380,1726862104854,500.0,0.00022999,120]
[338672381,1726862104966,500.0,0.00022999,120]
[338672382,1726862105182,500.0,0.00022999,120]
[338672383,1726862105236,500.0,0.00022999,120]
[338672384,1726862105290,500.0,0.00022999,120]
[338672385,1726862105522,500.0,0.00022999,120]
[338672386,1726862105575,500.0,0.00022999,120]
[338672387,1726862105810,500.0,0.00022999,120]
[338672388,1726862105865,500.0,0.00022999,120]
[338672389,1726862105921,500.0,0.00022999,120]
[338672390,1726862105973,500.0,0.00022999,120]
[338672391,1726862106150,500.0,0.00022999,120]
[338672392,1726862106206,500.0,0.00022999,120]
[338672393,1726862106259,500.0,0.00022999,120]
[338672394,1726862106313,231.24466382,0.00022999,120]
[338672395,1726862106460,500.0,0.00022999,120]
[338672396,1726862106515,500.0,0.00022999,120]
[338672397,1726862106569,500.0,0.00022999,120]
[338672398,1726862106625,500.0,0.00022999,120]
[338672399,1726862106786,323.28,0.00022999,120]
[338672400,1726862106852,500.0,0.00022999,120]
[338672401,1726862106907,500.0,0.00022999,120]
[338672402,1726862106988,500.0,0.00022999,120]
[338672403,1726862107246,500.0,0.00022999,120]
[338672404,1726862107307,500.0,0.00022999,120]
[338672405,1726862107371,500.0,0.00022999,120]
[338672406,1726862107540,521.55,0.00022999,120]
[338672407,1726862107640,418.83263429,0.00022999,120]
[338672408,1726862107697,500.0,0.00022999,120]
[338672409,1726862108041,500.0,0.00022999,120]
[338672410,1726862108377,500.0,0.00022999,120]
[338672411,1726862108706,500.0,0.00022999,120]
[338672412,1726862108775,606.56,0.00022999,120]
[338672413,1726862109033,500.0,0.00022999,120]
[338672414,1726862109085,606.56,0.00022999,120]
[338672415,1726862109352,500.0,0.00022999,120]
[338672416,1726862109413,606.56,0.00022999,120]
[338672417,1726862109668,515.11,0.00022999,120]
[338672418,1726862109718,500.0,0.00022999,120]
[338672419,1726862109847,606.56,0.00022999,120]
[338672420,1726862110032,500.0,0.00022999,120]
[338672421,1726862110175,606.56,0.00022999,120]
[338672422,1726862110355,161.99,0.00022999,120]
[338672423,1726862110494,606.56,0.00022999,120]
[338672424,1726862110550,500.0,0.00022999,120]
[338672425,1726862110907,606.56,0.00022999,120]
[338672426,1726862110957,500.0,0.00022999,120]
[338672427,1726862111158,500.0,0.00022999,120]
[338672428,1726862111208,606.56,0.00022999,120]
[338672429,1726862111482,500.0,0.00022999,120]
[338672430,1726862111534,606.56,0.00022999,120]
[338672431,1726862111814,500.0,0.00022999,120]
[338672432,1726862111870,606.56,0.00022999,120]
[338672433,1726862112159,500.0,0.00022999,120]
[338672434,1726862112213,606.56,0.00022999,120]
[338672435,1726862112495,500.0,0.00022999,120]
[338672436,1726862112547,500.0,0.00022999,120]
[338672437,1726862112607,606.56,0.00022999,120]
[338672438,1726862112818,458.52,0.00022999,120]
[338672439,1726862112869,500.0,0.00022999,120]
[338672440,1726862112928,606.56,0.00022999,120]
[338672441,1726862112987,500.0,0.00022999,120]
[338672442,1726862113193,606.56,0.00022999,120]
[338672443,1726862113513,606.56,0.00022999,120]
[338672444,1726862113564,153.75,0.00022999,120]
[338672445,1726862113887,606.56,0.00022999,120]
[338672446,1726862114261,606.56,0.00022999,120]
[338672447,1726862114590,606.56,0.00022999,120]
[338672448,1726862115088,606.56,0.00022999,120]
[338672449,1726862115227,606.56,0.00022999,120]
[338672450,1726862115583,606.56,0.00022999,120]
[338672451,1726862115899,606.56,0.00022999,120]
[338672452,1726862116211,606.56,0.00022999,120]
[338672453,1726862116269,500.0,0.00022999,120]
[338672454,1726862116536,606.78,0.00022999,120]
[338672455,1726862116590,500.0,0.00022999,120]
[338672456,1726862116897,500.0,0.00022999,120]
[338672457,1726862117212,320.88035383,0.00022999,120]
[338672458,1726862144039,392.57,0.000149,31]
[338672459,1726862144087,392.57,0.000149,31]
[338672460,1726862144131,392.57,0.000149,31]
[338672461,1726862144164,392.57,0.000149,31]
[338672462,1726862144244,392.57,0.000149,31]
[338672463,1726862144341,392.57,0.000149,31]
[338672464,1726862144673,392.57,0.000149,31]
[338672465,1726862144779,392.57,0.000149,31]
[338672466,1726862144814,392.57,0.000149,31]
[338672467,1726862144870,392.57,0.000149,31]
[338672468,1726862144922,392.57,0.000149,31]
[338672469,1726862144973,392.57,0.000149,31]
[338672470,1726862145032,392.57,0.000149,31]
[338672471,1726862145080,392.57,0.000149,31]
[338672472,1726862145133,392.57,0.000149,31]
[338672473,1726862145183,392.57,0.000149,31]
[338672475,1726862284427,250.0,0.0001202,2]
[338672476,1726862348699,169.22,0.0001202,2]
[338672477,1726862390430,184.44822387,0.00011972,2]
[338672479,1726862440184,328.26,0.00010277,2]
[338672480,1726862662129,410.9818888,0.00012015,2]
[338672481,1726862676140,218.01,0.00011992,2]
[338672482,1726862676369,218.01,0.00011995,2]
[338672483,1726862676577,218.01,0.00011999,2]
[338672484,1726862676835,218.01,0.00012002,2]
[338672485,1726862677036,218.01,0.00012005,2]
[338672486,1726862677473,218.01,0.00012008,2]
[338672487,1726862677698,218.01,0.00012011,2]
[338672488,1726862677928,218.01,0.00012014,2]
[338672489,1726862678156,218.01,0.00012018,2]
[338672490,1726862678390,218.01,0.00012021,2]
[338672491,1726862678636,218.01,0.00012024,2]
[338672492,1726862678839,218.01,0.00012027,2]
[338672493,1726862756092,329.79,0.000149,31]
[338672494,1726862756146,329.79,0.000149,31]
[338672495,1726862756207,329.79,0.000149,31]
[338672496,1726862756277,329.79,0.000149,31]
[338672497,1726862756388,329.79,0.000149,31]
[338672498,1726862756455,329.79,0.000149,31]
[338672499,1726862756512,329.79,0.000149,31]
[338672500,1726862756624,329.79,0.000149,31]
[338672501,1726862756688,329.79,0.000149,31]
[338672502,1726862756954,329.79,0.000149,31]
[338672503,1726862756999,329.79,0.000149,31]
[338672504,1726862757026,329.79,0.000149,31]
[338672505,1726862757065,329.79,0.000149,31]
[338672506,1726862757122,329.79,0.000149,31]
[338672507,1726862757174,329.79,0.000149,31]
[338672508,1726862757226,329.79,0.000149,31]
[338672510,1726862813110,159.26,0.00011735,2]
[338672511,1726862854554,2479.17,0.00011737,2]
[338672512,1726862875702,405.94,0.00011737,2]
[338672513,1726862899881,2275.09,0.00011737,2]
[338672514,1726862915365,250.0,0.00011737,2]
[338672515,1726862917228,157.98,0.00010959,2]
[338672516,1726862917328,250.0,0.00011737,2]
[338672517,1726862940574,1210.0,0.00011774,2]
[338672518,1726862971370,842.34116064,0.00022,60]
[338672519,1726862997183,475.79051531,0.00022,60]
[338672520,1726863003713,161.04,0.0001202,2]
[338672521,1726863032328,-218.01,0.0001203,2]
[338672522,1726863032339,-218.01,0.00012033,2]
[338672523,1726863032348,-218.01,0.00012036,2]
[338672524,1726863032358,-218.01,0.0001204,2]
[338672525,1726863032367,-218.01,0.00012043,2]
[338672526,1726863032376,-218.01,0.00012046,2]
[338672527,1726863032385,-218.01,0.00012049,2]
[338672528,1726863032395,-218.01,0.00012052,2]
[338672529,1726863032404,-2539.58,0.00012114,2]
[338672530,1726863032414,-300.0,0.00012114,2]
[338672531,1726863032424,-925.47788547,0.00012115,2]
[338672532,1726863032436,-478.31588386,0.00012115,2]
[338672533,1726863032451,-2941.22623067,0.00012115,2]
[338672534,1726863032461,-2000.0,0.00012115,2]
[338672535,1726863032471,-5837.44339871,0.00012115,2]
[338672536,1726863032483,-1299.333284,0.00012115,2]
[338672537,1726863032494,-966.21666469,0.00012115,2]
[338672538,1726863032505,-741.8811006,0.00012115,2]
[338672539,1726863032517,-2724.475552,0.00012115,2]
[338672540,1726863032527,-499.99,0.00012115,2]
[338672541,1726863032536,-181.91,0.00012144,2]
[338672542,1726863032546,-293.52120771,0.0001218,2]
[338672543,1726863032558,-793.90879229,0.0001218,2]
[338672544,1726863032568,-50.54160041,0.0001218,2]
[338672545,1726863032580,-105.18839959,0.0001218,2]
[338672546,1726863032589,-450.0,0.0001219,2]
[338672547,1726863032598,-328.26,0.00012541,2]
[338672548,1726863032607,-150.99,0.00012674,2]
[338672549,1726863032617,-1324.674,0.00012721,2]
[338672550,1726863032627,-150.0,0.00012783,2]
[338672551,1726863032637,-2001.1252,0.00012784,2]
[338672552,1726863032647,-11.82857314,0.00012784,2]
[338672553,1726863032659,-1903.32142686,0.00012784,2]
[338672554,1726863032669,-4110.4836,0.00012784,2]
[338672555,1726863032678,-173.374,0.00012784,2]
[338672556,1726863032688,-2208.52330689,0.000128,2]
[338672557,1726863032699,-4217.39972306,0.000128,2]
[338672558,1726863032709,-189.49,0.00012883,2]
[338672559,1726863032718,-189.49,0.00012883,2]
[338672560,1726863032728,-189.49,0.00012883,2]
[338672561,1726863032738,-189.49,0.00012883,2]
[338672562,1726863032748,-189.49,0.00012883,2]
[338672563,1726863032757,-189.49,0.00012883,2]
[338672564,1726863032767,-189.49,0.00012883,2]
[338672565,1726863032776,-189.49,0.00012883,2]
[338672566,1726863032785,-189.49,0.00012883,2]
[338672567,1726863032795,-150.45,0.00012884,2]
[338672568,1726863032805,-189.49,0.00012887,2]
[338672569,1726863032815,-189.49,0.00012887,2]
[338672570,1726863032824,-189.49,0.00012887,2]
[338672573,1726863032834,-189.49,0.00012887,2]
[338672576,1726863032843,-128.08230992,0.00012887,2]
[338672578,1726863032855,-61.40769008,0.00012887,2]
[338672580,1726863032864,-189.49,0.00012887,2]
[338672582,1726863032873,-4424.69726326,0.00012893,2]
[338672584,1726863032885,-2207.62085434,0.00012893,2]
[338672586,1726863032896,-784.34351086,0.00012893,2]
[338672587,1726863032908,-477.20950496,0.00012893,2]
[338672588,1726863032920,-251.35461498,0.00012893,2]
[338672589,1726863032935,-5183.32004138,0.00012893,2]
[338672590,1726863032946,-1367.57781629,0.00012893,2]
[338672591,1726863032958,-4892.18639393,0.00012893,2]
[338672592,1726863032967,-344.2608038,0.00012893,2]
[338672593,1726863032986,-5002.8491962,0.00012893,2]
[338672594,1726863032995,-23725.3,0.00012893,2]
[338672595,1726863033005,-29999.99,0.00012893,2]
[338672596,1726863033014,-44361.2008,0.00012897,2]
[338672597,1726863033023,-200.80710641,0.000129,2]
[338672598,1726863033033,-160.35568771,0.000129,2]
[338672599,1726863033043,-1000.0,0.00012978,2]
[338672600,1726863033053,-1000.0,0.00012986,2]
[338672601,1726863033062,-189.49,0.00012989,2]
[338672602,1726863033072,-2000.0,0.00012999,2]
[338672603,1726863033083,-898.61,0.00013,2]
[338672604,1726863033092,-312.82,0.00013,2]
[338672605,1726863033102,-1007.74,0.00013,2]
[338672606,1726863033112,-189.49,0.00013023,2]
[338672607,1726863033122,-6425.92302995,0.00013033,2]
[338672608,1726863033131,-189.49,0.00013037,2]
[338672609,1726863033141,-150.0,0.00013048,2]
[338672610,1726863033151,-932.0,0.00013048,2]
[338672611,1726863033160,-1903.0,0.00013048,2]
[338672612,1726863033169,-553.0,0.00013048,2]
[338672613,1726863033179,-235.84525016,0.00013048,2]
[338672614,1726863033191,-12.15474984,0.00013048,2]
[338672615,1726863033201,-3346.0,0.00013048,2]
[338672616,1726863033210,-1914.0,0.00013048,2]
[338672617,1726863033220,-806.0,0.00013048,2]
[338672618,1726863033229,-299.17704059,0.00013118,2]
[338672619,1726863033239,-242.45825038,0.00013118,2]
[338672620,1726863033248,-184.20907282,0.00013118,2]
[338672621,1726863033260,-196.0,0.00013118,2]
[338672622,1726863033270,-1929.496,0.00013122,2]
[338672623,1726863033280,-152.0,0.00013165,3]
[338672624,1726863033290,-189.49,0.00013212,2]
[338672625,1726863033299,-189.49,0.00013212,2]
[338672626,1726863033309,-1147.0,0.00013223,2]
[338672627,1726863033318,-5866.0,0.00013223,2]
[338672628,1726863033328,-13489.0,0.00013223,2]
[338672629,1726863033338,-150.0,0.00013223,2]
[338672630,1726863033347,-1080.0,0.00013223,2]
[338672631,1726863033357,-229.876,0.0001323,2]
[338672632,1726863033367,-262.444,0.0001323,2]
[338672633,1726863033377,-3302.03303807,0.00013267,2]
[338672634,1726863033389,-637.70410917,0.00013267,2]
[338672637,1726863038291,-1889.33290826,0.00013267,2]
[338672638,1726863038303,-596.85297445,0.00013267,2]
[338672639,1726863038312,-420.0,0.00013297,2]
[338672640,1726863038322,-170.647,0.0001332,2]
[338672641,1726863038332,-51.72322913,0.0001332,2]
[338672642,1726863038352,-99.04277087,0.0001332,2]
[338672644,1726863038362,-625.0,0.0001332,2]
[338672645,1726863038373,-703.17579453,0.0001332,2]
[338672646,1726863038385,-421.399227,0.0001332,2]
[338672647,1726863038398,-424.42497847,0.0001332,2]
[338672648,1726863038412,-174.78955127,0.0001332,2]
[338672649,1726863038425,-273.21044873,0.0001332,2]
[338672650,1726863038435,-1262.0,0.0001332,2]
[338672651,1726863038445,-558.0,0.0001332,2]
[338672652,1726863038455,-809.0,0.0001332,2]
[338672653,1726863038465,-155.0,0.0001341,2]
[338672654,1726863038475,-151.0,0.00013464,2]
[338672655,1726863038484,-279.31,0.00013474,2]
[338672656,1726863038494,-4058.90049082,0.000135,2]
[338672657,1726863038505,-918.803945,0.000135,2]
[338672658,1726863038517,-615.002,0.000135,2]
[338672659,1726863038528,-833.21659413,0.000135,2]
[338672660,1726863038537,-69.41421886,0.000136,2]
[338672661,1726863038551,-129.58578114,0.000136,2]
[338672662,1726863038562,-600.0,0.000136,2]
[338672663,1726863038573,-400.0,0.000136,4]
[338672664,1726863038584,-159.26,0.00013691,2]
[338672665,1726863038594,-524.4843275,0.00013695,2]
[338672666,1726863038604,-586.66989136,0.00013699,2]
[338672667,1726863038616,-1194.49010864,0.00013699,2]
[338672668,1726863038626,-200.0,0.00013699,2]
[338672669,1726863038635,-150.0,0.00013699,2]
[338672670,1726863038644,-2751.0,0.00013699,2]
[338672671,1726863038653,-500.0,0.00013699,2]
[338672672,1726863038667,-860.91989136,0.000137,2]
[338672673,1726863038679,-576.87446552,0.000137,2]
[338672675,1726863038690,-531.06930366,0.000137,2]
[338672677,1726863038701,-4274.36753946,0.000137,2]
[338672679,1726863038710,-1723.4823,0.000137,2]
[338672681,1726863038720,-1250.0,0.000137,2]
[338672683,1726863038729,-800.0,0.000137,5]
[338672685,1726863038739,-359.0,0.000137,2]
[338672687,1726863038749,-1000.0,0.000137,2]
[338672689,1726863038758,-227.0,0.000137,2]
[338672691,1726863038767,-277.58,0.000137,2]
[338672693,1726863038776,-336.84020246,0.000137,2]
[338672695,1726863038785,-195.754,0.00013726,2]
[338672697,1726863038794,-6425.92302995,0.00013733,2]
[338672699,1726863038803,-974.0,0.00013756,2]
[338672701,1726863038813,-1016.293,0.00013761,2]
[338672703,1726863038822,-500.0,0.00013773,2]
[338672704,1726863038831,-500.0,0.00013773,2]
[338672707,1726863038840,-500.0,0.00013789,2]
[338672708,1726863038849,-2000.0,0.00013789,2]
[338672710,1726863038859,-33519.26697975,0.0001379,2]
[338672712,1726863038868,-152.88,0.0001379,2]
[338672714,1726863038877,-277.58,0.0001379,2]
[338672716,1726863038886,-277.58,0.0001379,2]
[338672718,1726863038895,-277.58,0.0001379,2]
[338672720,1726863038904,-277.58,0.0001379,2]
[338672722,1726863038916,-170.54036844,0.00013795,2]
[338672724,1726863038926,-308.69351848,0.00013795,2]
[338672726,1726863038935,-185.73578068,0.00013795,2]
[338672727,1726863038945,-177.56180833,0.00013795,2]
[338672728,1726863038954,-480.2651,0.00013795,2]
[338672729,1726863038963,-4894.2571,0.00013795,2]
[338672730,1726863038972,-500.0,0.00013799,2]
[338672731,1726863038981,-308.69351848,0.000138,2]
[338672732,1726863038989,-98563.9143,0.000138,2]
[338672733,1726863038998,-27567.216,0.000138,2]
[338672734,1726863039007,-1000.0,0.000138,2]
[338672735,1726863039016,-7500.0,0.000138,2]
[338672736,1726863039025,-1200.0,0.000138,5]
[338672737,1726863039035,-78456.8682279,0.000138,3]
[338672738,1726863039044,-308.69351848,0.00013804,2]
[338672739,1726863039053,-524.48432749,0.00013852,2]
[338672740,1726863039063,-161.23962938,0.00013873,2]
[338672741,1726863039072,-159.21059266,0.00013873,2]
[338672742,1726863039081,-500.0,0.00013873,2]
[338672743,1726863039090,-500.0,0.00013873,2]
[338672744,1726863039099,-26152.2894093,0.00013874,3]
[338672745,1726863039109,-200.85733542,0.00013875,2]
[338672746,1726863039118,-152.88,0.00013875,2]
[338672747,1726863039127,-2000.0,0.00013876,2]
[338672748,1726863039137,-9308.02162226,0.0001388,2]
[338672749,1726863039147,-152.88,0.0001388,2]
[338672750,1726863039157,-255.0,0.00013882,2]
[338672751,1726863039351,-130761.447047,0.00013885,3]
[338672752,1726863039363,-152.88,0.00013885,2]
[338672753,1726863039373,-12023.86012702,0.00013886,2]
[338672754,1726863039383,-500.0,0.00013889,2]
[338672755,1726863039394,-500.0,0.00013889,2]
[338672756,1726863039408,-502.74892705,0.00013889,2]
[338672757,1726863039416,-500.0,0.00013889,2]
[338672758,1726863039426,-500.0,0.00013889,2]
[338672759,1726863039435,-500.0,0.00013889,2]
[338672760,1726863039449,-500.0,0.00013889,2]
[338672761,1726863039459,-500.0,0.00013889,2]
[338672762,1726863039470,-500.0,0.00013889,2]
[338672763,1726863039480,-500.0,0.00013889,2]
[338672764,1726863039491,-500.0,0.00013889,2]
[338672765,1726863039502,-500.0,0.00013889,2]
[338672766,1726863039512,-500.0,0.00013889,2]
[338672767,1726863039523,-500.0,0.00013889,2]
[338672768,1726863039532,-500.0,0.00013889,2]
[338672769,1726863039542,-500.0,0.00013889,2]
[338672770,1726863039551,-500.0,0.00013889,2]
[338672771,1726863039561,-500.0,0.00013889,2]
[338672772,1726863039573,-310.18926291,0.00013889,2]
[338672773,1726863039582,-500.0,0.00013889,2]
[338672774,1726863039591,-500.0,0.00013889,2]
[338672775,1726863039600,-500.0,0.00013889,2]
[338672776,1726863039609,-500.0,0.00013889,2]
[338672777,1726863039619,-183066.025865,0.0001389,3]
[338672778,1726863039631,-152.88,0.0001389,2]
[338672779,1726863039641,-152.88,0.0001389,2]
[338672780,1726863039650,-11986.8290354,0.00013895,2]
[338672781,1726863039660,-424.91912888,0.00013895,2]
[338672782,1726863039670,-29166.8488016,0.00013895,2]
[338672783,1726863039678,-6857.0533058,0.00013895,2]
[338672784,1726863039688,-640.09739164,0.00013895,2]
[338672785,1726863039700,-212.4595643,0.00013895,2]
[338672786,1726863039710,-3632.4632834,0.00013895,2]
[338672787,1726863039720,-11452.9790635,0.00013895,2]
[338672788,1726863039729,-53047.7673588,0.00013895,2]
[338672789,1726863039738,-1573.02385899,0.00013895,2]
[338672790,1726863039748,-67865.702837,0.00013895,2]
[338672791,1726863039758,-151.0,0.000139,2]
[338672792,1726863039767,-151.0,0.000139,2]
[338672793,1726863039776,-151.0,0.000139,2]
[338672794,1726863039785,-659.16927993,0.000139,2]
[338672795,1726863039794,-1600.0,0.000139,5]
[338672796,1726863039804,-301829.624362,0.000139,3]
[338672797,1726863039814,-1000.0,0.000139,2]
[338672798,1726863039823,-500.0,0.00013904,2]
[338672799,1726863039833,-26152.2894093,0.00013925,3]
[338672800,1726863039842,-3567.9,0.00013934,7]
[338672801,1726863039853,-3567.9,0.00013934,7]
[338672802,1726863039863,-279.31,0.00013951,2]
[338672803,1726863039873,-152.88,0.0001396,2]
[338672804,1726863039883,-500.0,0.00013962,2]
[338672805,1726863039892,-2000.0,0.00013962,2]
[338672806,1726863039901,-500.0,0.00013962,2]
[338672807,1726863039910,-500.0,0.00013962,2]
[338672808,1726863039920,-796.0,0.00013966,2]
[338672809,1726863039929,-6425.92302995,0.00013967,2]
[338672810,1726863039939,-26152.2894093,0.0001397,3]
[338672811,1726863039948,-24616.36555762,0.0001397,3]
[338672812,1726863039961,-8920.25937148,0.0001397,3]
[338672813,1726863039970,-26152.2894093,0.0001399,3]
[338672814,1726863039979,-30033.28986383,0.0001399,3]
[338672815,1726863039996,-785.23100942,0.0001399,3]
[338672816,1726863040008,-1806.10303032,0.0001399,3]
[338672817,1726863040020,-912.00102553,0.0001399,3]
[338672818,1726863040031,-2270.0,0.00013999,2]
[338672819,1726863040042,-264.67042966,0.00013999,2]
[338672820,1726863040052,-210.0,0.00014,2]
[338672821,1726863040062,-204.0,0.00014,2]
[338672822,1726863040072,-173.0,0.00014,2]
[338672823,1726863040083,-12114.16710969,0.00014,2]
[338672824,1726863040096,-267.88886955,0.00014,2]
[338672825,1726863040106,-1310.98480322,0.00014,2]
[338672826,1726863040118,-250.485,0.00014,2]
[338672829,1726863040363,-17912.76956282,0.00014,2]
[338672830,1726863040467,-687.02021086,0.00014,2]
[338672831,1726863040478,-1007.52312096,0.00014,2]
[338672832,1726863040521,-719.26763437,0.00014,2]
[338672833,1726863040576,-395.92311807,0.00014,2]
[338672834,1726863040589,-1383.75,0.00014,2]
[338672835,1726863040600,-477.21,0.00014,2]
[338672836,1726863040612,-359.18974162,0.00014,2]
[338672849,1726863043455,-500.0,0.00013773,2]
[338672850,1726863043467,-10541.27176407,0.00014,2]
[338672851,1726863043478,-1459.0,0.00014,2]
[338672852,1726863043489,-524.48432749,0.00014008,2]
[338672853,1726863043498,-152.88,0.00014045,2]
[338672854,1726863043507,-2000.0,0.00014049,2]
[338672855,1726863043516,-1506.66,0.00014055,2]
[338672856,1726863043526,-150.0,0.00014059,2]
[338672857,1726863043535,-170.54036843,0.00014071,2]
[338672858,1726863043544,-152.0,0.00014084,4]
[338672859,1726863043553,-1007.74,0.00014095,2]
[338672860,1726863043563,-26152.2894093,0.00014126,3]
[338672861,1726863043572,-500.0,0.00014136,2]
[338672862,1726863043582,-2000.0,0.00014136,2]
[338672863,1726863043592,-500.0,0.00014136,2]
[338672864,1726863043602,-500.0,0.00014136,2]
[338672865,1726863043611,-200.0,0.00014136,2]
[338672866,1726863043620,-156.2770892,0.0001416,2]
[338672867,1726863043630,-524.48432749,0.00014165,2]
[338672868,1726863043639,-181.91,0.00014168,2]
[338672869,1726863043649,-210.0,0.0001417,2]
[338672870,1726863043658,-204.0,0.0001417,2]
[338672871,1726863043670,-600.0,0.00014177,2]
[338672872,1726863043680,-33536.6249291,0.00014177,3]
[338672873,1726863043690,-26152.2894093,0.0001418,3]
[338672874,1726863043700,-300.0,0.00014192,2]
[338672875,1726863043710,-150.59,0.00014192,2]
[338672876,1726863043720,-428.14,0.00014192,2]
[338672877,1726863043729,-150.0,0.00014192,2]
[338672878,1726863043739,-428.14,0.00014192,2]
[338672879,1726863043748,-150.0,0.00014192,2]
[338672880,1726863043758,-219.48,0.00014192,2]
[338672881,1726863043768,-150.0,0.00014192,2]
[338672882,1726863043778,-1000.0,0.000142,4]
[338672883,1726863043787,-1000.0,0.000142,4]
[338672884,1726863043797,-1000.0,0.000142,4]
[338672885,1726863043807,-823.0,0.000142,3]
[338672886,1726863043816,-1000.0,0.000142,3]
[338672887,1726863043826,-1000.0,0.000142,5]
[338672888,1726863043836,-1000.0,0.000142,5]
[338672889,1726863043846,-1000.0,0.000142,4]
[338672890,1726863043855,-1000.0,0.000142,4]
[338672891,1726863043864,-1000.0,0.000142,3]
[338672892,1726863043874,-1000.0,0.000142,4]
[338672893,1726863043883,-1000.0,0.000142,3]
[338672894,1726863043892,-6425.92302995,0.000142,2]
[338672895,1726863043902,-3567.9,0.00014208,7]
[338672896,1726863043914,-3567.9,0.00014208,7]
[338672897,1726863043929,-200.85733542,0.00014209,2]